[Event "GER-ch Youth-U10 2022"]
[Site "Willingen"]
[Date "2022.06.08"]
[Round "6.24"]
[White "Leonhardt, Max"]
[Black "Antonius, Richard-Malte"]
[Result "1-0"]
[ECO "D60"]
[WhiteElo "1114"]
[BlackElo "1106"]
[Annotator "NA RC COMBH"]
[PlyCount "181"]
[EventDate "2022.06.05"]
[EventType "swiss"]
[EventRounds "11"]
[EventCountry "GER"]
[SourceTitle "playchess.com"]
[Source "ChessBase"]
[SourceQuality "1"]
[TimeControl "40/4500+30:900+30"]

1. d4 {[%emt 0:00:03]} d5 {[%emt 0:00:00]} 2. c4 {[%emt 0:00:19]} e6 {[%emt 0:00:05]} 3. Nc3 {[%emt 0:00:09]} Nf6 {[%emt 0:00:07]} 4. Nf3 {[%emt 0:00:08]} Nbd7 {[%emt 0:00:14]} 5. Bg5 {[%emt 0:00:11]} c6 {[%emt 0:00:20]} 6. e3 {[%emt 0:00:11]} Be7 {[%emt 0:00:13]} 7. Bd3 {[%emt 0:00:16]} h6 {[%emt 0:00:10]} 8. Bh4 {[%emt 0:00:06]} O-O {[%emt 0:00:10]} 9. O-O {[%emt 0:00:10]} Re8 {[%emt 0:00:19]} 10. Re1 {[%emt 0:01:24]} Bd6 {[%emt 0:01:46]} 11. Qc2 {[%emt 0:00:31]} dxc4 {[%emt 0:00:20]} 12. Bxc4 {[%emt 0:00:34]} g6 {[%emt 0:02:40]} 13. e4 {[%emt 0:00:26]} Be7 {[%emt 0:00:14]} 14. Bd3 {[%emt 0:00:47]} Kg7 {[%emt 0:00:52]} 15. Rad1 {[%emt 0:00:25]} Nf8 {[%emt 0:03:40]} 16. e5 {[%emt 0:01:08]} Nd5 {[%emt 0:00:46]} 17. Bxe7 {[%emt 0:00:14]} Rxe7 {[%emt 0:00:14]} 18. Nxd5 {[%emt 0:00:32]} cxd5 {[%emt 0:00:28]} 19. h3 {[%emt 0:01:02]} Rc7 {[%emt 0:00:35]} 20. Qd2 {[%emt 0:00:48]} Bd7 {[%emt 0:00:56]} 21. Nh2 {[%emt 0:00:10]} Rac8 {[%emt 0:00:43]} 22. Ng4 {[%emt 0:00:22]} Qg5 {[%emt 0:00:54]} 23. Qxg5 {[%emt 0:04:39]} hxg5 {[%emt 0:00:12]} 24. Kh2 {[%emt 0:00:35]} a6 {[%emt 0:00:17]} 25. Kg3 {[%emt 0:00:44]} Bb5 {[%emt 0:00:16]} 26. Bxb5 {[%emt 0:00:24]} axb5 {[%emt 0:00:09]} 27. Re2 {[%emt 0:00:14]} Rc2 {[%emt 0:00:38]} 28. Rde1 {[%emt 0:00:24]} R2c4 {[%emt 0:00:34]} 29. Rd2 {[%emt 0:00:50]} Rc2 {[%emt 0:00:23]} 30. Ree2 {[%emt 0:00:09]} Rxd2 {[%emt 0:00:27]} 31. Rxd2 {[%emt 0:00:12]} Rc4 {[%emt 0:00:13]} 32. Nf6 {[%emt 0:00:41]} Rb4 {[%emt 0:02:29]} 33. Kg4 {[%emt 0:00:19]} Kh6 {[%emt 0:00:38]} 34. a3 {[%emt 0:01:21]} Ra4 {[%emt 0:00:37]} 35. g3 {[%emt 0:01:55]} b4 {[%emt 0:01:41]} 36. axb4 {[%emt 0:09:28]} Rxb4 {[%emt 0:00:19]} 37. Ng8+ {[%emt 0:01:17]} Kg7 {[%emt 0:00:10]} 38. Nf6 {[%emt 0:00:10]} Kh6 {[%emt 0:00:05]} 39. f3 {[%emt 0:04:41]} b5 {[%emt 0:00:35]} 40. h4 {[%emt 0:00:37]} gxh4 {[%emt 0:00:15]} 41. Kxh4 {[%emt 0:15:06]} g5+ {[%emt 0:18:37]} 42. Kg4 {[%emt 0:00:31]} Kg6 {[%emt 0:00:35]} 43. f4 {[%emt 0:00:41]} gxf4 {[%emt 0:00:11]} 44. gxf4 {[%emt 0:00:32]} Nh7 {[%emt 0:01:23]} 45. Nxh7 {[%emt 0:00:26]} Kxh7 {[%emt 0:00:05]} 46. Kh5 {[%emt 0:00:19]} Rb3 {[%emt 0:00:13]} 47. Kg5 {[%emt 0:00:30]} Kg7 {[%emt 0:00:11]} 48. Rg2 {[%emt 0:00:35]} Rh3 {[%emt 0:01:07]} 49. Rd2 {[%emt 0:03:52]} Rb3 {[%emt 0:00:36]} 50. Kg4 {[%emt 0:01:35]} Rb4 {[%emt 0:01:22]} 51. f5 {[%emt 0:01:09]} exf5+ {[%emt 0:01:30]} 52. Kxf5 {[%emt 0:00:09]} Kf8 {[%emt 0:00:07]} 53. e6 {[%emt 0:00:38]} Ke7 {[%emt 0:00:20]} 54. exf7 {[%emt 0:00:10]} Kxf7 {[%emt 0:00:04]} 55. Ke5 {[%emt 0:00:07]} Ke7 {[%emt 0:00:07]} 56. Kxd5 {[%emt 0:00:10]} Kd7 {[%emt 0:00:06]} 57. Kc5 {[%emt 0:00:19]} Rb3 {[%emt 0:00:09]} 58. d5 {[%emt 0:00:12]} Re3 {[%emt 0:00:41]} 59. Kxb5 {[%emt 0:00:12]} Re5 {[%emt 0:00:07]} 60. Kc5 {[%emt 0:00:11]} Kc7 {[%emt 0:00:15]} 61. b4 {[%emt 0:00:24]} Re8 {[%emt 0:00:11]} 62. d6+ {[%emt 0:00:29]} Kd7 {[%emt 0:00:08]} 63. Rd4 {[%emt 0:00:36]} Rc8+ {[%emt 0:00:08]} 64. Kd5 {[%emt 0:00:15]} Rb8 {[%emt 0:00:08]} 65. Kc4 {[%emt 0:00:51]} Rc8+ {[%emt 0:00:09]} 66. Kb3 {[%emt 0:00:14]} Rc6 {[%emt 0:00:07]} 67. Ka4 {[%emt 0:01:09]} Rxd6 {[%emt 0:00:09]} 68. Rxd6+ {[%emt 0:00:24]} Kxd6 {[%emt 0:00:06]} 69. Kb5 {[%emt 0:00:24]} Kc7 {[%emt 0:00:06]} 70. Ka6 {[%emt 0:00:29]} Kc8 {[%emt 0:00:20]} 71. Ka7 {[%emt 0:00:10]} Kc7 {[%emt 0:00:05]} 72. b5 {[%emt 0:00:09]} Kc8 {[%emt 0:00:09]} 73. b6 {[%emt 0:00:08]} Kd7 {[%emt 0:00:06]} 74. b7 {[%emt 0:00:06]} Kd6 {[%emt 0:00:09]} 75. b8=Q+ {[%emt 0:00:14]} Kd5 {[%emt 0:00:20]} 76. Kb6 {[%emt 0:00:20]} Kd4 {[%emt 0:00:07]} 77. Qc7 {[%emt 0:00:19]} Kd5 {[%emt 0:00:15]} 78. Qc5+ {[%emt 0:00:09]} Ke4 {[%emt 0:00:08]} 79. Qd6 {[%emt 0:00:09]} Ke3 {[%emt 0:00:14]} 80. Qb4 {[%emt 0:00:15]} Kd3 {[%emt 0:00:13]} 81. Kc5 {[%emt 0:00:09]} Ke3 {[%emt 0:00:07]} 82. Qc4 {[%emt 0:00:28]} Kf3 {[%emt 0:00:11]} 83. Qd4 {[%emt 0:00:07]} Ke2 {[%emt 0:00:11]} 84. Qc3 {[%emt 0:00:08]} Kf2 {[%emt 0:00:05]} 85. Qd3 {[%emt 0:00:07]} Kg2 {[%emt 0:00:07]} 86. Qe3 {[%emt 0:00:07]} Kh2 {[%emt 0:00:17]} 87. Qg5 {[%emt 0:00:10]} Kh3 {[%emt 0:00:08]} 88. Kd4 {[%emt 0:00:08]} Kh2 {[%emt 0:00:08]} 89. Ke3 {[%emt 0:00:08]} Kh1 {[%emt 0:00:32]} 90. Kf2 {[%emt 0:00:01]} Kh2 {[%emt 0:00:13]} 91. Qh4# {[%emt 0:00:10]} 1-0

[Event "GER-ch Youth-U10 2022"]
[Site "Willingen"]
[Date "2022.06.08"]
[Round "6.26"]
[White "Menke, Raphael Wilhelm"]
[Black "Mulgunov, Jefim Nikolaj"]
[Result "1-0"]
[ECO "C45"]
[WhiteElo "1212"]
[BlackElo "1055"]
[Annotator "NA RC COMBH"]
[PlyCount "29"]
[EventDate "2022.06.05"]
[EventType "swiss"]
[EventRounds "11"]
[EventCountry "GER"]
[SourceTitle "playchess.com"]
[Source "ChessBase"]
[SourceQuality "1"]
[TimeControl "40/4500+30:900+30"]

1. e4 {[%emt 0:00:02]} e5 {[%emt 0:00:05]} 2. Nf3 {[%emt 0:00:04]} Nc6 {[%emt 0:00:06]} 3. d4 {[%emt 0:00:05]} exd4 {[%emt 0:00:14]} 4. Nxd4 {[%emt 0:00:05]} Bc5 {[%emt 0:00:31]} 5. Be3 {[%emt 0:00:07]} Qf6 {[%emt 0:00:07]} 6. c3 {[%emt 0:00:08]} Qg6 {[%emt 0:00:26]} 7. Qf3 {[%emt 0:07:53]} Nf6 {[%emt 0:00:22]} 8. Nd2 {[%emt 0:00:09]} O-O {[%emt 0:01:23]} 9. Nxc6 {[%emt 0:00:42]} Bxe3 {[%emt 0:00:14]} 10. Ne7+ {[%emt 0:00:07]} Kh8 {[%emt 0:00:48]} 11. Nxg6+ {[%emt 0:00:05]} fxg6 {[%emt 0:00:15]} 12. Qxe3 {[%emt 0:00:07]} d5 {[%emt 0:00:27]} 13. e5 {[%emt 0:00:14]} Re8 {[%emt 0:00:22]} 14. h3 {[%emt 0:00:21]} Nd7 {[%emt 0:01:19]} 15. f4 {[%emt 0:00:14]} 1-0

[Event "GER-ch Youth-U10 2022"]
[Site "Willingen"]
[Date "2022.06.08"]
[Round "6.27"]
[White "Wetzig, Karl Anton"]
[Black "Classen, Marnin"]
[Result "0-1"]
[ECO "C01"]
[WhiteElo "884"]
[BlackElo "1168"]
[Annotator "NA RC COMBH"]
[PlyCount "76"]
[EventDate "2022.06.05"]
[EventType "swiss"]
[EventRounds "11"]
[EventCountry "GER"]
[SourceTitle "playchess.com"]
[Source "ChessBase"]
[SourceQuality "1"]
[TimeControl "40/4500+30:900+30"]

1. e4 {[%emt 0:00:04]} e6 {[%emt 0:00:23]} 2. d4 {[%emt 0:00:08]} d5 {[%emt 0:00:09]} 3. exd5 {[%emt 0:00:12]} exd5 {[%emt 0:00:10]} 4. Bd3 {[%emt 0:00:14]} Nf6 {[%emt 0:00:13]} 5. Nf3 {[%emt 0:00:23]} Bg4 {[%emt 0:00:16]} 6. O-O {[%emt 0:00:16]} Be7 {[%emt 0:00:22]} 7. Bf4 {[%emt 0:01:00]} O-O {[%emt 0:00:26]} 8. Nbd2 {[%emt 0:00:12]} Bd6 {[%emt 0:01:40]} 9. Bxd6 {[%emt 0:02:31]} Qxd6 {[%emt 0:01:31]} 10. Re1 {[%emt 0:00:36]} Nbd7 {[%emt 0:00:05]} 11. h3 {[%emt 0:00:25]} Bh5 {[%emt 0:00:39]} 12. c3 {[%emt 0:02:13]} Rfe8 {[%emt 0:01:28]} 13. Qc2 {[%emt 0:00:43]} Rad8 {[%emt 0:00:39]} 14. a4 {[%emt 0:07:09]} c6 {[%emt 0:00:54]} 15. b4 {[%emt 0:02:30]} a6 {[%emt 0:05:47]} 16. g3 {[%emt 0:01:10]} Qc7 {[%emt 0:05:28]} 17. Kg2 {[%emt 0:01:03]} Nf8 {[%emt 0:02:03]} 18. a5 {[%emt 0:03:00]} Ne6 {[%emt 0:03:19]} 19. Nh4 {[%emt 0:04:08]} Bg6 {[%emt 0:03:13]} 20. Nxg6 {[%emt 0:01:33]} hxg6 {[%emt 0:00:06]} 21. Re2 {[%emt 0:00:33]} Re7 {[%emt 0:00:27]} 22. Rae1 {[%emt 0:01:03]} Rde8 {[%emt 0:00:32]} 23. Nf3 {[%emt 0:03:27]} Nh5 {[%emt 0:01:29]} 24. Ne5 {[%emt 0:03:03]} Nf6 {[%emt 0:01:58]} 25. f4 {[%emt 0:01:21]} Nd7 {[%emt 0:00:23]} 26. h4 {[%emt 0:00:45]} Nxe5 {[%emt 0:00:51]} 27. fxe5 {[%emt 0:00:09]} g5 {[%emt 0:00:26]} 28. Kh3 {[%emt 0:00:33]} gxh4 {[%emt 0:00:15]} 29. gxh4 {[%emt 0:00:11]} Nf4+ {[%emt 0:01:12]} 30. Kg3 {[%emt 0:00:38]} Nxe2+ {[%emt 0:00:11]} 31. Rxe2 {[%emt 0:00:08]} f6 {[%emt 0:00:33]} 32. Bh7+ {[%emt 0:00:23]} Kh8 {[%emt 0:00:22]} 33. Qf5 {[%emt 0:01:44]} fxe5 {[%emt 0:00:49]} 34. Bg6 {[%emt 0:00:38]} exd4+ {[%emt 0:00:17]} 35. Kf3 {[%emt 0:00:25]} Re3+ {[%emt 0:06:24]} 36. Rxe3 {[%emt 0:01:56]} Rxe3+ {[%emt 0:00:25]} 37. Kf2 {[%emt 0:00:12]} Qg3+ {[%emt 0:00:16]} 38. Kf1 {[%emt 0:01:24]} Re1# {[%emt 0:02:49]} 0-1

[Event "GER-ch Youth-U10 2022"]
[Site "Willingen"]
[Date "2022.06.08"]
[Round "7.1"]
[White "Nezhyvenko, Mykhaylo"]
[Black "Rau, Eduard"]
[Result "1-0"]
[ECO "C50"]
[WhiteElo "1488"]
[BlackElo "1406"]
[Annotator "NA RC COMBH"]
[PlyCount "91"]
[EventDate "2022.06.05"]
[EventType "swiss"]
[EventRounds "11"]
[EventCountry "GER"]
[SourceTitle "playchess.com"]
[Source "ChessBase"]
[SourceQuality "1"]
[TimeControl "40/4500+30:900+30"]

1. e4 {[%emt 0:00:03]} e5 {[%emt 0:00:03]} 2. Nf3 {[%emt 0:00:10]} Nc6 {[%emt 0:00:03]} 3. Bc4 {[%emt 0:00:12]} Nf6 {[%emt 0:00:05]} 4. d3 {[%emt 0:00:07]} Bc5 {[%emt 0:00:03]} 5. Nbd2 {[%emt 0:00:07]} a6 {[%emt 0:00:14]} 6. a4 {[%emt 0:00:19]} d6 {[%emt 0:00:09]} 7. Nf1 {[%emt 0:00:02]} Be6 {[%emt 0:00:24]} 8. Ng3 {[%emt 0:00:38]} Bxc4 {[%emt 0:00:16]} 9. dxc4 {[%emt 0:00:01]} h5 {[%emt 0:00:43]} 10. Bg5 {[%emt 0:00:25]} Qe7 {[%emt 0:05:10]} 11. Nf5 {[%emt 0:01:14]} Qf8 {[%emt 0:01:20]} 12. Qe2 {[%emt 0:00:13]} Ng4 {[%emt 0:03:10]} 13. O-O {[%emt 0:00:55]} f6 {[%emt 0:00:30]} 14. Bd2 {[%emt 0:00:45]} g6 {[%emt 0:00:47]} 15. N5h4 {[%emt 0:01:16]} Qf7 {[%emt 0:01:06]} 16. Rab1 {[%emt 0:03:01]} a5 {[%emt 0:01:48]} 17. c3 {[%emt 0:00:47]} Bb6 {[%emt 0:02:47]} 18. b4 {[%emt 0:01:58]} axb4 {[%emt 0:00:31]} 19. cxb4 {[%emt 0:00:27]} Rxa4 {[%emt 0:00:35]} 20. c5 {[%emt 0:00:00]} dxc5 {[%emt 0:00:43]} 21. bxc5 {[%emt 0:00:02]} Bxc5 {[%emt 0:02:10]} 22. Qb5 {[%emt 0:00:11]} Bxf2+ {[%emt 0:00:40]} 23. Rxf2 {[%emt 0:00:03]} Qa2 {[%emt 0:12:30]} 24. Qxb7 {[%emt 0:02:26]} O-O {[%emt 0:02:59]} 25. Rff1 {[%emt 0:02:46]} Rb8 {[%emt 0:01:34]} 26. Qxc6 {[%emt 0:00:01]} Rxb1 {[%emt 0:00:13]} 27. Qe8+ {[%emt 0:00:01]} Kg7 {[%emt 0:00:48]} 28. Qd7+ {[%emt 0:00:09]} Kg8 {[%emt 0:00:24]} 29. Qc8+ {[%emt 0:00:14]} Kg7 {[%emt 0:00:33]} 30. Qxc7+ {[%emt 0:00:37]} Kg8 {[%emt 0:00:07]} 31. Qd8+ {[%emt 0:00:05]} Kg7 {[%emt 0:00:06]} 32. Qe7+ {[%emt 0:00:01]} Kg8 {[%emt 0:00:21]} 33. Qe8+ {[%emt 0:00:07]} Kg7 {[%emt 0:00:04]} 34. Qxg6+ {[%emt 0:00:12]} Kf8 {[%emt 0:00:16]} 35. Bh6+ {[%emt 0:00:01]} Ke7 {[%emt 0:01:26]} 36. Nf5+ {[%emt 0:05:21]} Kd8 {[%emt 0:00:58]} 37. Bc1 {[%emt 0:02:08]} Qc4 {[%emt 0:01:58]} 38. Rd1+ {[%emt 0:01:55]} Kc7 {[%emt 0:01:41]} 39. Qg7+ {[%emt 0:04:23]} Kc6 {[%emt 0:00:44]} 40. Qd7+ {[%emt 0:03:00]} Kb6 {[%emt 0:01:21]} 41. Be3+ {[%emt 0:15:53]} Nxe3 {[%emt 0:19:53]} 42. Rxb1+ {[%emt 0:00:10]} Rb4 {[%emt 0:00:59]} 43. Qd6+ {[%emt 0:00:11]} Ka5 {[%emt 0:00:08]} 44. Qxb4+ {[%emt 0:00:06]} Qxb4 {[%emt 0:00:09]} 45. Rxb4 {[%emt 0:00:01]} Kxb4 {[%emt 0:00:12]} 46. Nxe3 {[%emt 0:00:02]} 1-0

[Event "GER-ch Youth-U10 2022"]
[Site "Willingen"]
[Date "2022.06.08"]
[Round "7.2"]
[White "Zhang, Yibo"]
[Black "Kateryniuk, Ivan"]
[Result "1-0"]
[ECO "C43"]
[WhiteElo "1436"]
[BlackElo "1187"]
[Annotator "NA RC COMBH"]
[PlyCount "47"]
[EventDate "2022.06.05"]
[EventType "swiss"]
[EventRounds "11"]
[EventCountry "GER"]
[SourceTitle "playchess.com"]
[Source "ChessBase"]
[SourceQuality "1"]
[TimeControl "40/4500+30:900+30"]

1. e4 {[%emt 0:00:06]} e5 {[%emt 0:00:18]} 2. Nf3 {[%emt 0:00:04]} Nf6 {[%emt 0:00:10]} 3. d4 {[%emt 0:00:05]} Nxe4 {[%emt 0:00:07]} 4. Bd3 {[%emt 0:00:05]} d5 {[%emt 0:00:07]} 5. Nxe5 {[%emt 0:00:15]} Nd7 {[%emt 0:00:10]} 6. Nc3 {[%emt 0:00:17]} Nxc3 {[%emt 0:08:02]} 7. bxc3 {[%emt 0:00:14]} Nxe5 {[%emt 0:00:08]} 8. dxe5 {[%emt 0:00:14]} Bc5 {[%emt 0:01:32]} 9. O-O {[%emt 0:01:07]} c6 {[%emt 0:04:45]} 10. Kh1 {[%emt 0:02:52]} h5 {[%emt 0:25:11]} 11. f4 {[%emt 0:04:21]} Bg4 {[%emt 0:00:42]} 12. Qe1 {[%emt 0:12:36]} Qd7 {[%emt 0:11:09]} 13. f5 {[%emt 0:00:00]} O-O-O {[%emt 0:02:00]} 14. Rb1 {[%emt 0:04:54]} g6 {[%emt 0:02:09]} 15. Be3 {[%emt 0:10:30]} Bxe3 {[%emt 0:02:24]} 16. Qxe3 {[%emt 0:00:17]} Kb8 {[%emt 0:03:35]} 17. Ba6 {[%emt 0:07:30]} b6 {[%emt 0:01:08]} 18. fxg6 {[%emt 0:06:37]} fxg6 {[%emt 0:02:18]} 19. Rf4 {[%emt 0:11:41]} Rde8 {[%emt 0:08:24]} 20. Rxb6+ {[%emt 0:04:36]} axb6 {[%emt 0:03:03]} 21. Qxb6+ {[%emt 0:00:22]} Ka8 {[%emt 0:00:46]} 22. Ra4 {[%emt 0:00:19]} Re7 {[%emt 0:04:44]} 23. Bb7+ {[%emt 0:00:20]} Kb8 {[%emt 0:00:44]} 24. Ra8# {[%emt 0:00:09]} 1-0

[Event "GER-ch Youth-U10 2022"]
[Site "Willingen"]
[Date "2022.06.08"]
[Round "7.3"]
[White "Campora, Daniel H."]
[Black "Zimmer, Tim"]
[Result "1-0"]
[ECO "D00"]
[WhiteElo "2397"]
[BlackElo "1164"]
[Annotator "TA"]
[PlyCount "47"]
[EventDate "2022.06.05"]
[EventType "swiss"]
[EventRounds "11"]
[EventCountry "GER"]
[SourceTitle "playchess.com"]
[Source "ChessBase"]
[SourceQuality "1"]
[TimeControl "40/4500+30:900+30"]

{[%evp 9,47,-37,-15,-14,-8,-11,36,32,30,23,74,70,75,60,100,59,95,3,547,554,538,528,531,242,258,155,224,180,299,298,372,354,380,364,1656,424,644,397,1177,303]} 1. d4 {[%emt 0:00:01]} d5 {[%emt 0:00:05]} 2. e3 {[%emt 0:00:10]} e6 {[%emt 0:00:32]} 3. Bd3 {[%emt 0:00:21]} Nf6 {[%emt 0:00:52]} 4. Nd2 {[%emt 0:00:27]} Bd6 {[%emt 0:00:36]} 5. f4 {[%emt 0:00:35]} Nbd7 {[%emt 0:01:27]} 6. Ngf3 {[%emt 0:00:36] D00: 1 d4 d5: Unusual lines.} O-O {[%emt 0:01:43]} 7. O-O {[%emt 0:00:48]} Re8 {[%emt 0:01:31]} (7... c5 $11 {should be considered.}) 8. Ne5 $14 {[%emt 0:00:43] White is slightly better.} c5 {[%emt 0:06:05]} 9. c3 {[%emt 0:00:26]} c4 {[%emt 0:01:07]} (9... g6 $11) 10. Bc2 $16 {[%emt 0:00:18] [#] White is more active.} b5 $146 {[%emt 0:03:22]} ({Predecessor:} 10... Nf8 11. Rf3 g6 12. Rh3 Qc7 13. g4 Kg7 14. g5 Nh5 15. Nf1 f6 16. gxf6+ Nxf6 {1-0 (37) Boisyvon,C (1210)-Wolfangel,J (1411) Sautron 2013}) 11. e4 {[%emt 0:00:21]} Nb6 {[%emt 0:06:10]} 12. Qe2 {[%emt 0:03:12][%cal Oe5f7]} Bb7 {[%emt 0:02:33] [#]} 13. exd5 {[%emt 0:01:43]} (13. Nxf7 $1 $16 Kxf7 14. e5) 13... Nfxd5 $2 {[%emt 0:03:01][%mdl 8192] [#] Black cannot hold the game after this.} (13... exd5 $11 {and Black stays safe.} 14. g4 Ne4) 14. Bxh7+ $1 $18 {[%emt 0:02:58][%mdl 512]} Kf8 {[%emt 0:04:27]} 15. Qh5 {[%emt 0:04:00][%csl Ge5][%cal Rh5f7]} Qc7 {[%emt 0:02:18] [#]} 16. Be4 {[%emt 0:03:38]} (16. Bg6 $142 $1 {[%mdl 512]}) 16... Nf6 {[%emt 0:05:44]} 17. Qe2 {[%emt 0:01:40]} Nbd5 {[%emt 0:05:22]} (17... Nxe4 $16 {might work better.} 18. Nxe4 Bxe4) 18. a3 {[%emt 0:05:55]} Nxe4 {[%emt 0:04:44]} (18... Ne7 {was necessary.} 19. a4 a6) 19. Nxe4 {[%emt 0:00:20]} a5 {[%emt 0:04:33]} 20. Nxd6 {[%emt 0:06:22]} ({Less strong is} 20. Qh5 Nf6 21. Nxf6 gxf6 $18) 20... Qxd6 {[%emt 0:00:30]} 21. Qh5 {[%emt 0:01:22][%csl Ge5][%cal Rh5f7]} g6 $2 {[%emt 0:07:09]} (21... Qc7 22. Qh8+ Ke7 23. Qxg7 Kd6 24. Nxf7+ Kc6 25. Ne5+ Kd6 26. Nf7+ Kc6 27. Ne5+ Kb6 28. Qxc7+ Kxc7) 22. Qh8+ {[%emt 0:00:37]} (22. Qh7 $142 Qc7 23. f5) 22... Ke7 {[%emt 0:00:18]} 23. Qg7 {[%emt 0:00:18]} Rab8 $2 {[%emt 0:06:41]} (23... Rf8 24. Nxg6+ Kd7) 24. Nxf7 $2 {[%emt 0:02:02] Weighted Error Value: White=0.83/Black=0.74} (24. f5 Qxe5 25. Qxe5 gxf5 26. Rxf5) 1-0

[Event "GER-ch Youth-U10 2022"]
[Site "Willingen"]
[Date "2022.06.08"]
[Round "7.4"]
[White "Shen, Tingrui"]
[Black "Allen, Phillipp"]
[Result "1-0"]
[ECO "B12"]
[WhiteElo "1621"]
[BlackElo "1467"]
[Annotator "NA RC COMBH"]
[PlyCount "47"]
[EventDate "2022.06.05"]
[EventType "swiss"]
[EventRounds "11"]
[EventCountry "GER"]
[SourceTitle "playchess.com"]
[Source "ChessBase"]
[SourceQuality "1"]
[TimeControl "40/4500+30:900+30"]

1. e4 {[%emt 0:00:13]} c6 {[%emt 0:00:10]} 2. d4 {[%emt 0:00:36]} d5 {[%emt 0:00:04]} 3. e5 {[%emt 0:00:35]} Bf5 {[%emt 0:00:20]} 4. Nd2 {[%emt 0:00:45]} e6 {[%emt 0:00:12]} 5. Nb3 {[%emt 0:01:24]} Nd7 {[%emt 0:01:43]} 6. Nf3 {[%emt 0:01:23]} c5 {[%emt 0:04:02]} 7. dxc5 {[%emt 0:05:19]} Bxc5 {[%emt 0:01:54]} 8. Bb5 {[%emt 0:11:30]} Bb6 {[%emt 0:01:55]} 9. O-O {[%emt 0:05:42]} a6 {[%emt 0:01:57]} 10. Bd3 {[%emt 0:11:30]} Ne7 {[%emt 0:01:50]} 11. Bxf5 {[%emt 0:04:36]} Nxf5 {[%emt 0:00:23]} 12. c3 {[%emt 0:01:59]} h6 {[%emt 0:02:07]} 13. Nbd4 {[%emt 0:07:21]} Ne7 {[%emt 0:07:52]} 14. Re1 {[%emt 0:06:01]} Nc6 {[%emt 0:03:04]} 15. h3 {[%emt 0:09:37]} O-O {[%emt 0:07:01]} 16. Bf4 {[%emt 0:02:40]} Bxd4 {[%emt 0:00:44]} 17. cxd4 {[%emt 0:01:09]} b5 {[%emt 0:01:24]} 18. Qd2 {[%emt 0:04:37]} Kh7 {[%emt 0:04:40]} 19. Qc2+ {[%emt 0:00:09]} Kg8 {[%emt 0:02:03]} 20. Qxc6 {[%emt 0:00:12]} Rc8 {[%emt 0:01:32]} 21. Qxa6 {[%emt 0:01:23]} Rc4 {[%emt 0:05:26]} 22. b3 {[%emt 0:01:22]} Nb8 {[%emt 0:01:11]} 23. Qxb5 {[%emt 0:00:19]} Qc7 {[%emt 0:01:58]} 24. bxc4 {[%emt 0:00:08]} 1-0

[Event "GER-ch Youth-U10 2022"]
[Site "Willingen"]
[Date "2022.06.08"]
[Round "7.5"]
[White "Dotschuweit, Erik"]
[Black "Vartanian, Roman"]
[Result "1-0"]
[ECO "B50"]
[WhiteElo "1323"]
[BlackElo "1511"]
[Annotator "NA RC COMBH"]
[PlyCount "117"]
[EventDate "2022.06.05"]
[EventType "swiss"]
[EventRounds "11"]
[EventCountry "GER"]
[SourceTitle "playchess.com"]
[Source "ChessBase"]
[SourceQuality "1"]
[TimeControl "40/4500+30:900+30"]

1. e4 {[%emt 0:00:03]} c5 {[%emt 0:00:12]} 2. Nf3 {[%emt 0:00:12]} d6 {[%emt 0:00:07]} 3. c3 {[%emt 0:02:13]} Nf6 {[%emt 0:00:26]} 4. Bd3 {[%emt 0:00:28]} Nbd7 {[%emt 0:01:00]} 5. O-O {[%emt 0:00:42]} e6 {[%emt 0:00:11]} 6. Bc2 {[%emt 0:00:27]} Be7 {[%emt 0:00:23]} 7. d4 {[%emt 0:00:35]} cxd4 {[%emt 0:00:09]} 8. cxd4 {[%emt 0:00:09]} Qc7 {[%emt 0:00:21]} 9. Nc3 {[%emt 0:00:48]} a6 {[%emt 0:00:21]} 10. Re1 {[%emt 0:01:24]} O-O {[%emt 0:00:32]} 11. e5 {[%emt 0:00:44]} dxe5 {[%emt 0:00:26]} 12. dxe5 {[%emt 0:00:33]} Ng4 {[%emt 0:07:10]} 13. Bf4 {[%emt 0:01:40]} Bc5 {[%emt 0:03:16]} 14. Ne4 {[%emt 0:15:54]} f5 {[%emt 0:14:30]} 15. Nfg5 {[%emt 0:00:00]} Qb6 {[%emt 0:08:36]} 16. Nxc5 {[%emt 0:00:00]} Nxc5 {[%emt 0:02:08]} 17. h3 {[%emt 0:00:00]} Nxf2 {[%emt 0:04:58]} 18. Qd4 {[%emt 0:00:41]} Nfe4 {[%emt 0:03:32]} 19. Nxe4 {[%emt 0:00:22]} fxe4 {[%emt 0:02:47]} 20. Be3 {[%emt 0:00:19]} Bd7 {[%emt 0:00:33]} 21. Qxc5 {[%emt 0:00:23]} Qxc5 {[%emt 0:00:09]} 22. Bxc5 {[%emt 0:00:08]} Rfc8 {[%emt 0:00:13]} 23. b4 {[%emt 0:00:28]} b6 {[%emt 0:01:02]} 24. Bxe4 {[%emt 0:00:10]} bxc5 {[%emt 0:00:07]} 25. Bxa8 {[%emt 0:00:10]} Rxa8 {[%emt 0:00:05]} 26. bxc5 {[%emt 0:00:18]} Rc8 {[%emt 0:00:26]} 27. Red1 {[%emt 0:00:12]} Bc6 {[%emt 0:00:13]} 28. Rd6 {[%emt 0:00:35]} Bd5 {[%emt 0:00:10]} 29. Rc1 {[%emt 0:00:19]} Kf7 {[%emt 0:01:01]} 30. Rxa6 {[%emt 0:00:47]} Kg6 {[%emt 0:00:10]} 31. a4 {[%emt 0:00:35]} Kf5 {[%emt 0:00:08]} 32. c6 {[%emt 0:01:30]} Rc7 {[%emt 0:00:46]} 33. Rb1 {[%emt 0:00:38]} Kxe5 {[%emt 0:00:14]} 34. Rb7 {[%emt 0:00:15]} Rxb7 {[%emt 0:00:09]} 35. cxb7 {[%emt 0:00:16]} Bxb7 {[%emt 0:00:05]} 36. Ra7 {[%emt 0:00:11]} Bc6 {[%emt 0:00:15]} 37. Rxg7 {[%emt 0:00:21]} Bxa4 {[%emt 0:00:11]} 38. Rxh7 {[%emt 0:00:10]} Bc2 {[%emt 0:00:25]} 39. Rf7 {[%emt 0:00:29]} Bg6 {[%emt 0:00:10]} 40. Rf8 {[%emt 0:00:08]} Kd4 {[%emt 0:00:18]} 41. Kf2 {[%emt 0:15:39]} e5 {[%emt 0:15:14]} 42. g4 {[%emt 0:00:23]} Kd5 {[%emt 0:00:17]} 43. Rf6 {[%emt 0:00:29]} Be8 {[%emt 0:00:21]} 44. Ke3 {[%emt 0:00:16]} Bd7 {[%emt 0:00:11]} 45. Rf3 {[%emt 0:02:32]} Ke6 {[%emt 0:00:19]} 46. g5 {[%emt 0:00:29]} Be8 {[%emt 0:00:17]} 47. h4 {[%emt 0:00:43]} Bh5 {[%emt 0:00:33]} 48. Rf6+ {[%emt 0:01:19]} Kd5 {[%emt 0:00:13]} 49. g6 {[%emt 0:00:14]} e4 {[%emt 0:00:15]} 50. g7 {[%emt 0:00:22]} Ke5 {[%emt 0:00:10]} 51. g8=Q {[%emt 0:00:16]} Kxf6 {[%emt 0:00:10]} 52. Qg5+ {[%emt 0:00:28]} Ke6 {[%emt 0:00:09]} 53. Qxh5 {[%emt 0:00:16]} Kf6 {[%emt 0:00:10]} 54. Qg5+ {[%emt 0:00:10]} Kf7 {[%emt 0:00:10]} 55. Kxe4 {[%emt 0:00:11]} Ke8 {[%emt 0:00:07]} 56. Qg7 {[%emt 0:00:15]} Kd8 {[%emt 0:00:07]} 57. Kd5 {[%emt 0:00:20]} Ke8 {[%emt 0:00:13]} 58. Kd6 {[%emt 0:00:10]} Kd8 {[%emt 0:00:06]} 59. Qd7# {[%emt 0:00:16]} 1-0